Workbook

Sheet 업무여유도(김순정)
A1: - 업무여유도
A2: ( 참여분야 : 사업총괄, 김순정)
A3: (여유도 산정 기준일) | C3: 2016-08-01
A4: No. | B4: 용역명 | C4: 총사업금액 (백만원) | D4: 착수일 | E4: 준공일 | F4: 잔여 일수 | G4: 1년이내 잔여 일수 | H4: 총계약 일수 | I4: 중복금액 (백만원)
A5: 1 | B5: 단양-영월 도로건설공사 환경영향평가용역 | C5: 716 | D5: 2015-02-26 | E5: 2017-02-14 | F5: =E5-$C$3 -> 197 | G5: =IF(F5>=356,365,F5) -> 197 | H5: =E5-D5 -> 719 | I5: =ROUNDUP((SUM((C5*((G5*12/365)/(H5*12/365))/10))),2) -> 19.62
B6: 계 | I6: =SUM(I5:I5) -> 19.62
A7: * 평가기준에 의한 대상 용역만 기재
A8: * 소수점 셋째자리에서 반올림

Sheet 업무여유도(황민기)
A1: - 업무여유도
A2: ( 참여분야 : 수질관리분야 책임, 황민기)
A3: (여유도 산정 기준일) | C3: 2016-08-01
A4: No. | B4: 용역명 | C4: 총사업금액 (백만원) | D4: 착수일 | E4: 준공일 | F4: 잔여 일수 | G4: 1년이내 잔여 일수 | H4: 총계약 일수 | I4: 중복금액 (백만원)
A5: 1 | B5: "해당사항 없음"
B6: 계 | I6: =SUM(I5:I5) -> 0
A7: * 평가기준에 의한 대상 용역만 기재
A8: * 소수점 셋째자리에서 반올림

Sheet 업무여유도(김상렬)
A1: - 업무여유도
A2: ( 참여분야 : 대기관리분야 책임, 김상렬)
A3: (여유도 산정 기준일) | C3: 2016-08-01
A4: No. | B4: 용역명 | C4: 총사업금액 (백만원) | D4: 착수일 | E4: 준공일 | F4: 잔여 일수 | G4: 1년이내 잔여 일수 | H4: 총계약 일수 | I4: 중복금액 (백만원)
A5: 1 | B5: 구미 하이테크밸리 제 영향평가 변경(2단계 지역) 용역 | C5: 250 | D5: 2015-10-12 | E5: 2017-01-03 | F5: =E5-$C$3 -> 155 | G5: =IF(F5>=356,365,F5) -> 155 | H5: =E5-D5 -> 449 | I5: =ROUNDUP((SUM((C5*((G5*12/365)/(H5*12/365))/10))),2) -> 8.64
A6: 2 | B6: 칠곡북삼 도시개발사업 제영향평가용역 | C6: 597 | D6: 2015-06-18 | E6: 2017-06-17 | F6: =E6-$C$3 -> 320 | G6: =IF(F6>=356,365,F6) -> 320 | H6: =E6-D6 -> 730 | I6: =ROUNDUP((SUM((C6*((G6*12/365)/(H6*12/365))/10))),2) -> 26.17
B7: 계 | I7: =SUM(I5:I6) -> 34.81
A8: * 평가기준에 의한 대상 용역만 기재
A9: * 소수점 셋째자리에서 반올림

Sheet 업무여유도(고겸섭)
A1: - 업무여유도
A2: ( 참여분야 : 폐기물처리분야 책임, 고겸섭)
A3: (여유도 산정 기준일) | C3: 2016-08-01
A4: No. | B4: 용역명 | C4: 총사업금액 (백만원) | D4: 착수일 | E4: 준공일 | F4: 잔여 일수 | G4: 1년이내 잔여 일수 | H4: 총계약 일수 | I4: 중복금액 (백만원)
A5: 1 | B5: 밀레니엄타운 조성사업 제 영향평가용역 | C5: 558 | D5: 2016-01-25 | E5: 2016-11-19 | F5: =E5-$C$3 -> 110 | G5: =IF(F5>=356,365,F5) -> 110 | H5: =E5-D5 -> 299 | I5: =ROUNDUP((SUM((C5*((G5*12/365)/(H5*12/365))/10))),2) -> 20.53
A6: 2 | B6: 흑산공항 건설공사 환경영향평가 용역 | C6: 1280 | D6: 2016-02-01 | E6: 2017-01-30 | F6: =E6-$C$3 -> 182 | G6: =IF(F6>=356,365,F6) -> 182 | H6: =E6-D6 -> 364 | I6: =ROUNDUP((SUM((C6*((G6*12/365)/(H6*12/365))/10))),2) -> 64
A7: 3 | B7: 삼성-동탄 광역급행철도(삼성-수서) 환경영향평가 | C7: 407 | D7: 2016-03-17 | E7: 2017-03-16 | F7: =E7-$C$3 -> 227 | G7: =IF(F7>=356,365,F7) -> 227 | H7: =E7-D7 -> 364 | I7: =ROUNDUP((SUM((C7*((G7*12/365)/(H7*12/365))/10))),2) -> 25.39
A8: 4 | B8: 호남고속도로(동광주-광산) 확장사업 전략 및 환경영향평가 용역 | C8: 671 | D8: 2015-07-01 | E8: 2017-07-19 | F8: =E8-$C$3 -> 352 | G8: 352 | H8: 749 | I8: 31.54
B9: 계 | I9: =SUM(I5:I8) -> 141.46
A10: * 평가기준에 의한 대상 용역만 기재
A11: * 소수점 셋째자리에서 반올림

Sheet 업무여유도(이규환)
A1: - 업무여유도
A2: ( 참여분야 : 소음진동분야 책임, 이규환)
A3: (여유도 산정 기준일) | C3: 2016-08-01
A4: No. | B4: 용역명 | C4: 총사업금액 (백만원) | D4: 착수일 | E4: 준공일 | F4: 잔여 일수 | G4: 1년이내 잔여 일수 | H4: 총계약 일수 | I4: 중복금액 (백만원)
A5: 1 | B5: "해당사항 없음"
B6: 계 | I6: =SUM(I5:I5) -> 0
A7: * 평가기준에 의한 대상 용역만 기재
A8: * 소수점 셋째자리에서 반올림

Sheet 업무여유도(김찬석)
A1: - 업무여유도
A2: ( 참여분야 : 자연환경분야 책임, 김찬석)
A3: (여유도 산정 기준일) | C3: 2016-08-01
A4: No. | B4: 용역명 | C4: 총사업금액 (백만원) | D4: 착수일 | E4: 준공일 | F4: 잔여 일수 | G4: 1년이내 잔여 일수 | H4: 총계약 일수 | I4: 중복금액 (백만원)
A5: 1 | B5: 구미 하이테크밸리 제 영향평가 변경(2단계 지역) 용역 | C5: 250 | D5: 2015-10-12 | E5: 2017-01-03 | F5: =E5-$C$3 -> 155 | G5: =IF(F5>=356,365,F5) -> 155 | H5: =E5-D5 -> 449 | I5: =ROUNDUP((SUM((C5*((G5*12/365)/(H5*12/365))/10))),2) -> 8.64
A6: 2 | B6: 흑산공항 건설공사 환경영향평가 용역 | C6: 1280 | D6: 2016-02-01 | E6: 2017-01-30 | F6: =E6-$C$3 -> 182 | G6: =IF(F6>=356,365,F6) -> 182 | H6: =E6-D6 -> 364 | I6: =ROUNDUP((SUM((C6*((G6*12/365)/(H6*12/365))/10))),2) -> 64
A7: 3 | B7: 서울 A공공주택지구전략 및 환경영향평가용역 | C7: 233 | D7: 2016-03-09 | E7: 2018-03-08 | F7: =E7-$C$3 -> 584 | G7: 365 | H7: =E7-D7 -> 729 | I7: 11.67
A8: 4 | B8: 고양시 하수슬러지 처리시설 건설사업 환경영향평가 용역 | C8: 639 | D8: 2016-04-26 | E8: 2017-04-25 | F8: =E8-$C$3 -> 267 | G8: 267 | H8: =E8-D8 -> 364 | I8: 46.88
B9: 계 | I9: =SUM(I5:I8) -> 131.19
A10: * 평가기준에 의한 대상 용역만 기재
A11: * 소수점 셋째자리에서 반올림

Sheet 업무여유도(김무정)
A1: - 업무여유도
A2: ( 참여분야 : 교통분야 책임, 김무정)
A3: (여유도 산정 기준일) | C3: 2016-08-01
A4: No. | B4: 용역명 | C4: 총사업금액 (백만원) | D4: 착수일 | E4: 준공일 | F4: 잔여 일수 | G4: 1년이내 잔여 일수 | H4: 총계약 일수 | I4: 중복금액 (백만원)
A5: 1 | B5: 고양덕은지구 도시개발사업 영향평가용역 | C5: 625 | D5: 2013-07-26 | E5: 2016-11-03 | F5: =E5-$C$3 -> 94 | G5: =IF(F5>=356,365,F5) -> 94 | H5: =E5-D5 -> 1196 | I5: -
A6: 2 | B6: 경찰대.법무연수원 도시관리계획(변경)결정 교통영향분석.개선대책 수립 및 전략환경영향평가 용역 | C6: 285 | D6: 2014-01-27 | E6: 2017-03-31 | F6: =E6-$C$3 -> 242 | G6: =IF(F6>=356,365,F6) -> 242 | H6: =E6-D6 -> 1159 | I6: =ROUNDUP((SUM((C6*((G6*12/365)/(H6*12/365))/10))),2) -> 5.96
A7: 3 | B7: 광주완도(광주~강진간) 고속도로 건설사업 교통영향평가 및 일반교통안전진단 용역 | C7: 328 | D7: 2016-06-03 | E7: 2016-12-19 | F7: =E7-$C$3 -> 140 | G7: 140 | H7: =E7-D7 -> 199 | I7: =ROUNDUP((SUM((C7*((G7*12/365)/(H7*12/365))/10))),2) -> 23.08
A8: 4 | B8: 과천주암 기업형 임대주택 공급촉진지구 교통영향평가 및 사전재해영향성검토(개발사업)용역 | C8: 255 | D8: 2016-06-07 | E8: 2017-12-06 | F8: 492 | G8: 365 | H8: 547 | I8: 17.02
A9: 5 | B9: 의왕초평 기업형 임대주택 공급촉진지구 교통영향평가 및 사전재해영향성검토(개발사업)용역 | C9: 204 | D9: 2016-06-13 | E9: 2017-12-12 | F9: 498 | G9: 365 | H9: 547 | I9: 13.62
A10: 6 | B10: 센텀2지구 도시첨단산업단지 조성사업 교통영향평가 용역 | C10: 422 | D10: 2016-06-21 | E10: 2018-02-20 | F10: 568 | G10: 365 | H10: 609 | I10: 25.3
A11: 7 | B11: 진주항공 국가산업단지 조성사업 교통영향평가 및 사전재해영향성검토(개발사업)용역 | C11: 205 | D11: 2016-06-29 | E11: 2017-12-28 | F11: 514 | G11: 365 | H11: 547 | I11: 13.68
A12: 8 | B12: 영동선(안산-북수원) 확장사업 교통영향평가 | C12: 275 | D12: 2016-03-21 | E12: 2016-12-15 | F12: 136 | G12: 136 | H12: 269 | I12: 13.91
B13: 계 | I13: =SUM(I5:I12) -> 112.57
A14: * 평가기준에 의한 대상 용역만 기재
A15: * 소수점 셋째자리에서 반올림

Sheet 업무여유도(이문규)
A1: - 업무여유도
A2: ( 참여분야 : 수질관리분야 참여, 이문규)
A3: (여유도 산정 기준일) | C3: 2016-08-01
A4: No. | B4: 용역명 | C4: 총사업금액 (백만원) | D4: 착수일 | E4: 준공일 | F4: 잔여 일수 | G4: 1년이내 잔여 일수 | H4: 총계약 일수 | I4: 중복금액 (백만원)
A5: 1 | B5: 구례군 소하천정비종합계획 재수립 전략환경영향평가용역 | C5: 317 | D5: 2016-03-25 | E5: 2017-11-14 | F5: =E5-$C$3 -> 470 | G5: =IF(F5>=356,365,F5) -> 365 | H5: =E5-D5 -> 599 | I5: =ROUNDUP((SUM((C5*((G5*12/365)/(H5*12/365))/10))),2) -> 19.32
B6: 계 | I6: =SUM(I5:I5) -> 19.32
A7: * 평가기준에 의한 대상 용역만 기재
A8: * 소수점 셋째자리에서 반올림

Sheet 업무여유도(정구호)
A1: - 업무여유도
A2: ( 참여분야 : 대기관리분야 참여, 정구호)
A3: (여유도 산정 기준일) | C3: 2016-08-01
A4: No. | B4: 용역명 | C4: 총사업금액 (백만원) | D4: 착수일 | E4: 준공일 | F4: 잔여 일수 | G4: 1년이내 잔여 일수 | H4: 총계약 일수 | I4: 중복금액 (백만원)
A5: 1 | B5: 구례군 소하천정비종합계획 재수립 전략환경영향평가용역 | C5: 317 | D5: 2016-03-25 | E5: 2017-11-14 | F5: =E5-$C$3 -> 470 | G5: =IF(F5>=356,365,F5) -> 365 | H5: =E5-D5 -> 599 | I5: =ROUNDUP((SUM((C5*((G5*12/365)/(H5*12/365))/10))),2) -> 19.32
A6: 2 | B6: 건건천 생태하천복원사업 모니터링용역 | C6: 157 | D6: 2016-06-07 | E6: 2020-04-30 | F6: =E6-$C$3 -> 1368 | G6: =IF(F6>=356,365,F6) -> 365 | H6: =E6-D6 -> 1423 | I6: =ROUNDUP((SUM((C6*((G6*12/365)/(H6*12/365))/10))),2) -> 4.03
B7: 계 | I7: =SUM(I5:I6) -> 23.35
A8: * 평가기준에 의한 대상 용역만 기재
A9: * 소수점 셋째자리에서 반올림

Sheet 업무여유도(한응석)
A1: - 업무여유도
A2: ( 참여분야 : 폐기물처리분야 참여, 한응석)
A3: (여유도 산정 기준일) | C3: 2016-08-01
A4: No. | B4: 용역명 | C4: 총사업금액 (백만원) | D4: 착수일 | E4: 준공일 | F4: 잔여 일수 | G4: 1년이내 잔여 일수 | H4: 총계약 일수 | I4: 중복금액 (백만원)
A5: 1 | B5: 고양덕은지구 도시개발사업 영향평가용역 | C5: 625 | D5: 2013-07-26 | E5: 2016-11-03 | F5: =E5-$C$3 -> 94 | G5: =IF(F5>=356,365,F5) -> 94 | H5: =E5-D5 -> 1196 | I5: -
A6: 2 | B6: 밀레니엄타운 조성사업 제 영향평가용역 | C6: 558 | D6: 2016-01-25 | E6: 2016-11-19 | F6: 110 | G6: =IF(F6>=356,365,F6) -> 110 | H6: =E6-D6 -> 299 | I6: =ROUNDUP((SUM((C6*((G6*12/365)/(H6*12/365))/10))),2) -> 20.53
A7: 3 | B7: 칠곡북삼 도시개발사업 제영향평가용역 | C7: 541 | D7: 2015-06-18 | E7: 2017-06-17 | F7: 320 | G7: 320 | H7: =E7-D7 -> 730 | I7: =ROUNDUP((SUM((C7*((G7*12/365)/(H7*12/365))/10))),2) -> 23.72
A8: 4 | B8: 갑천+유등천권역 하천기본계획 전략환경영향평가용역 | C8: 832 | D8: 2015-11-12 | E8: 2017-02-03 | F8: 186 | G8: 186 | H8: 449 | I8: 34.47
A9: 5 | B9: 금호강 상류권역(최상류, 상류) 하천기본계획수립 전략환경영향평가 용역 | C9: 666 | D9: 2015-11-17 | E9: 2017-11-05 | F9: 461 | G9: 365 | H9: 719 | I9: 33.81
A10: 6 | B10: 서울 A공공주택지구전략 및 환경영향평가용역 | C10: 233 | D10: 2016-03-09 | E10: 2018-03-08 | F10: 584 | G10: 365 | H10: 729 | I10: 11.67
B11: 계 | I11: =SUM(I5:I10) -> 124.2
A12: * 평가기준에 의한 대상 용역만 기재
A13: * 소수점 셋째자리에서 반올림

Sheet 업무여유도(김현무)
A1: - 업무여유도
A2: ( 참여분야 : 소음진동분야 참여, 김현무)
A3: (여유도 산정 기준일) | C3: 2016-08-01
A4: No. | B4: 용역명 | C4: 총사업금액 (백만원) | D4: 착수일 | E4: 준공일 | F4: 잔여 일수 | G4: 1년이내 잔여 일수 | H4: 총계약 일수 | I4: 중복금액 (백만원)
A5: 1 | B5: 경찰대.법무연수원 도시관리계획(변경)결정 교통영향분석.개선대책 수립 및 전략환경영향평가 용역 | C5: 285 | D5: 2014-01-27 | E5: 2017-03-31 | F5: =E5-$C$3 -> 242 | G5: =IF(F5>=356,365,F5) -> 242 | H5: =E5-D5 -> 1159 | I5: =ROUNDUP((SUM((C5*((G5*12/365)/(H5*12/365))/10))),2) -> 5.96
A6: 2 | B6: 삼성-동탄 광역급행철도(삼성-수서) 환경영향평가 | C6: 407 | D6: 2016-03-17 | E6: 2017-03-16 | F6: =E6-$C$3 -> 227 | G6: =IF(F6>=356,365,F6) -> 227 | H6: =E6-D6 -> 364 | I6: =ROUNDUP((SUM((C6*((G6*12/365)/(H6*12/365))/10))),2) -> 25.39
B7: 계 | I7: =SUM(I5:I6) -> 31.35
A8: * 평가기준에 의한 대상 용역만 기재
A9: * 소수점 셋째자리에서 반올림

Sheet 업무여유도(김동인)
A1: - 업무여유도
A2: ( 참여분야 : 자연환경분야 참여, 김동인)
A3: (여유도 산정 기준일) | C3: 2016-08-01
A4: No. | B4: 용역명 | C4: 총사업금액 (백만원) | D4: 착수일 | E4: 준공일 | F4: 잔여 일수 | G4: 1년이내 잔여 일수 | H4: 총계약 일수 | I4: 중복금액 (백만원)
A5: 1 | B5: 무주군 소하천정비종합계획(변경)수립 전략환경영향평가 용역 | C5: 674 | D5: 2016-06-10 | E5: 2017-06-09 | F5: =E5-$C$3 -> 312 | G5: =IF(F5>=356,365,F5) -> 312 | H5: =E5-D5 -> 364 | I5: =ROUNDUP((SUM((C5*((G5*12/365)/(H5*12/365))/10))),2) -> 57.78
A6: 2 | B6: 서울 A공공주택지구전략 및 환경영향평가용역 | C6: 233 | D6: 2016-03-09 | E6: 2018-03-08 | F6: =E6-$C$3 -> 584 | G6: =IF(F6>=356,365,F6) -> 365 | H6: =E6-D6 -> 729 | I6: =ROUNDUP((SUM((C6*((G6*12/365)/(H6*12/365))/10))),2) -> 11.67
B7: 계 | I7: =SUM(I5:I6) -> 69.45
A8: * 평가기준에 의한 대상 용역만 기재
A9: * 소수점 셋째자리에서 반올림

Sheet 업무여유도(백상훈)
A1: - 업무여유도
A2: ( 참여분야 : 교통분야 참여, 백상훈)
A3: (여유도 산정 기준일) | C3: 2016-08-01
A4: No. | B4: 용역명 | C4: 총사업금액 (백만원) | D4: 착수일 | E4: 준공일 | F4: 잔여 일수 | G4: 1년이내 잔여 일수 | H4: 총계약 일수 | I4: 중복금액 (백만원)
A5: 1 | B5: 영동선(안산-북수원) 확장사업 교통영향평가 | C5: 275 | D5: 2016-03-21 | E5: 2016-12-15 | F5: =E5-$C$3 -> 136 | G5: =IF(F5>=356,365,F5) -> 136 | H5: =E5-D5 -> 269 | I5: =ROUNDUP((SUM((C5*((G5*12/365)/(H5*12/365))/10))),2) -> 13.91
A6: 2 | B6: 광주완도(광주~강진간) 고속도로 건설사업 교통영향평가 및 일반교통안전진단 용역 | C6: 328 | D6: 2016-06-03 | E6: 2016-12-19 | F6: =E6-$C$3 -> 140 | G6: =IF(F6>=356,365,F6) -> 140 | H6: =E6-D6 -> 199 | I6: =ROUNDUP((SUM((C6*((G6*12/365)/(H6*12/365))/10))),2) -> 23.08
A7: 3 | B7: 과천주암 기업형 임대주택 공급촉진지구 교통영향평가 및 사전재해영향성검토(개발사업)용역 | C7: 255 | D7: 2016-06-07 | E7: 2017-12-06 | F7: =E7-$C$3 -> 492 | G7: 365 | H7: =E7-D7 -> 547 | I7: =ROUNDUP((SUM((C7*((G7*12/365)/(H7*12/365))/10))),2) -> 17.02
A8: 4 | B8: 의왕초평 기업형 임대주택 공급촉진지구 교통영향평가 및 사전재해영향성검토(개발사업)용역 | C8: 204 | D8: 2016-06-13 | E8: 2017-12-12 | F8: 498 | G8: 365 | H8: 547 | I8: 13.62
A9: 5 | B9: 센텀2지구 도시첨단산업단지 조성사업 교통영향평가 용역 | C9: 422 | D9: 2016-06-21 | E9: 2018-02-20 | F9: 568 | G9: 365 | H9: 609 | I9: 25.3
B10: 계 | I10: =SUM(I5:I9) -> 92.93
A11: * 평가기준에 의한 대상 용역만 기재
A12: * 소수점 셋째자리에서 반올림
